[Event "Titled Tuesday Blitz July 27 2021"]
[White "Dvirnyy, Danyyil"]
[Black "Poormosavi, Seyed Kian"]
[WhiteFideId "817570"]
[BlackFideId "12585807"]
[WhiteElo "2727"]
[BlackElo "2549"]
[Result "1-0"]
[Round "10"]
[TimeControl "180+1"]
[Date "2021.07.27"]
[WhiteClock "0:00:15"]
[BlackClock "0:00:07"]

1. d4 {[%clk 0:03:00]}  Nf6 {[%clk 0:02:35]} 2. Bf4 {[%clk 0:02:58]}  e6 {[%clk 0:02:34]} 3. e3 {[%clk 0:02:55]}  b6 {[%clk 0:02:30]} 4. Nf3 {[%clk 0:02:54]}  Bb7 {[%clk 0:02:30]} 5. Be2 {[%clk 0:02:50]}  Be7 {[%clk 0:02:26]} 6. h3 {[%clk 0:02:50]}  O-O {[%clk 0:02:20]} 7. O-O {[%clk 0:02:50]}  c5 {[%clk 0:02:16]} 8. c3 {[%clk 0:02:46]}  d6 {[%clk 0:02:15]} 9. Bh2 {[%clk 0:02:41]}  cxd4 {[%clk 0:02:15]} 10. exd4 {[%clk 0:02:41]}  Nbd7 {[%clk 0:02:15]} 11. a4 {[%clk 0:02:41]}  a6 {[%clk 0:02:11]} 12. Nbd2 {[%clk 0:02:40]}  Re8 {[%clk 0:02:06]} 13. Re1 {[%clk 0:02:39]}  Nf8 {[%clk 0:02:06]} 14. Bd3 {[%clk 0:02:36]}  Ng6 {[%clk 0:02:03]} 15. Qe2 {[%clk 0:02:32]}  Nd5 {[%clk 0:02:00]} 16. Qf1 {[%clk 0:02:31]}  Qd7 {[%clk 0:01:56]} 17. Bg3 {[%clk 0:02:25]}  Ndf4 {[%clk 0:01:45]} 18. Bc4 {[%clk 0:02:19]}  Rec8 {[%clk 0:01:40]} 19. h4 {[%clk 0:02:14]}  Qd8 {[%clk 0:01:23]} 20. Bb3 {[%clk 0:01:40]}  Nh5 {[%clk 0:01:11]} 21. Ne4 {[%clk 0:01:32]}  Bxe4 {[%clk 0:01:00]} 22. Rxe4 {[%clk 0:01:32]}  d5 {[%clk 0:01:01]} 23. Re3 {[%clk 0:01:20]}  Bxh4 {[%clk 0:01:00]} 24. Nxh4 {[%clk 0:01:15]}  Nxh4 {[%clk 0:00:58]} 25. Bh2 {[%clk 0:01:08]}  Qg5 {[%clk 0:00:58]} 26. Kh1 {[%clk 0:01:01]}  Nf6 {[%clk 0:00:46]} 27. Rh3 {[%clk 0:00:58]}  Ng4 {[%clk 0:00:39]} 28. Qe2 {[%clk 0:00:45]}  Nf5 {[%clk 0:00:34]} 29. Rf1 {[%clk 0:00:37]}  b5 {[%clk 0:00:33]} 30. a5 {[%clk 0:00:28]}  b4 {[%clk 0:00:30]} 31. Bc2 {[%clk 0:00:28]}  bxc3 {[%clk 0:00:28]} 32. bxc3 {[%clk 0:00:29]}  Rc6 {[%clk 0:00:21]} 33. Bd3 {[%clk 0:00:18]}  Rxc3 {[%clk 0:00:16]} 34. Bxf5 {[%clk 0:00:18]}  Rxh3 {[%clk 0:00:14]} 35. Bxg4 {[%clk 0:00:19]}  Rh6 {[%clk 0:00:11]} 36. Bh3 {[%clk 0:00:19]}  Qh4 {[%clk 0:00:09]} 37. f4 {[%clk 0:00:19]}  Qd8 {[%clk 0:00:07]} 38. Qd2 {[%clk 0:00:17]}  Rb8 {[%clk 0:00:06]} 39. f5 {[%clk 0:00:17]}  Rb5 {[%clk 0:00:06]} 40. fxe6 {[%clk 0:00:17]}  fxe6 {[%clk 0:00:07]} 41. Qf4 {[%clk 0:00:17]}  Rf6 {[%clk 0:00:07]} 42. Qc1 {[%clk 0:00:16]}  Rxf1+ {[%clk 0:00:05]} 43. Qxf1 {[%clk 0:00:17]}  Qf6 {[%clk 0:00:04]} 44. Qe1 {[%clk 0:00:16]}  Rxa5 {[%clk 0:00:03]} 45. Qxa5 {[%clk 0:00:16]}  h6 {[%clk 0:00:02]} 46. Qd2 {[%clk 0:00:14]}  a5 {[%clk 0:00:01]} 47. Qxa5 {[%clk 0:00:13]}  Qxd4 {[%clk 0:00:02]} 48. Bxe6+ {[%clk 0:00:13]}  Kh7 {[%clk 0:00:03]} 49. Qxd5 {[%clk 0:00:13]}  Qa1+ {[%clk 0:00:03]} 50. Bg1 {[%clk 0:00:12]}  Qf6 {[%clk 0:00:04]} 51. Qf5+ {[%clk 0:00:12]}  Qxf5 {[%clk 0:00:05]} 52. Bxf5+ {[%clk 0:00:13]}  g6 {[%clk 0:00:06]} 53. Bd3 {[%clk 0:00:13]}  h5 {[%clk 0:00:06]} 54. g3 {[%clk 0:00:13]}  Kh6 {[%clk 0:00:07]} 55. Kg2 {[%clk 0:00:14]}  g5 {[%clk 0:00:08]} 56. Be3 {[%clk 0:00:13]}  h4 {[%clk 0:00:06]} 57. gxh4 {[%clk 0:00:14]}  Kh5 {[%clk 0:00:06]} 58. Bxg5 {[%clk 0:00:14]}  Kg4 {[%clk 0:00:07]} 59. Be2+ {[%clk 0:00:14]}  Kf5 {[%clk 0:00:07]} 60. Kg3 {[%clk 0:00:15]} 1-0


[Site "https://www.chess.com"]

[Event "Titled Tuesday Blitz July 27 2021"]
[White "Eggleston, Thomas A"]
[Black "Provotorov, Ivan"]
[WhiteFideId "412139"]
[BlackFideId "4154657"]
[WhiteElo "2174"]
[BlackElo "2270"]
[Result "0-1"]
[Round "10"]
[TimeControl "180+1"]
[Date "2021.07.27"]
[WhiteClock "0:00:37"]
[BlackClock "0:00:50"]

1. e4 {[%clk 0:03:00]}  e6 {[%clk 0:02:55]} 2. d4 {[%clk 0:02:59]}  d5 {[%clk 0:02:55]} 3. exd5 {[%clk 0:02:58]}  exd5 {[%clk 0:02:56]} 4. c4 {[%clk 0:02:59]}  Nf6 {[%clk 0:02:57]} 5. Nc3 {[%clk 0:02:59]}  Be7 {[%clk 0:02:57]} 6. Nf3 {[%clk 0:02:58]}  O-O {[%clk 0:02:57]} 7. cxd5 {[%clk 0:02:59]}  Bg4 {[%clk 0:02:58]} 8. Bd3 {[%clk 0:02:56]}  Nbd7 {[%clk 0:02:55]} 9. h3 {[%clk 0:02:46]}  Bh5 {[%clk 0:02:53]} 10. g4 {[%clk 0:02:45]}  Bg6 {[%clk 0:02:53]} 11. Bxg6 {[%clk 0:02:38]}  hxg6 {[%clk 0:02:54]} 12. Ne5 {[%clk 0:02:37]}  Nb6 {[%clk 0:02:51]} 13. Be3 {[%clk 0:02:32]}  Nbxd5 {[%clk 0:02:50]} 14. O-O {[%clk 0:02:30]}  Nxc3 {[%clk 0:02:41]} 15. bxc3 {[%clk 0:02:30]}  Nd5 {[%clk 0:02:42]} 16. Qf3 {[%clk 0:02:23]}  c6 {[%clk 0:02:27]} 17. c4 {[%clk 0:02:22]}  Nxe3 {[%clk 0:02:17]} 18. fxe3 {[%clk 0:02:22]}  Bf6 {[%clk 0:02:17]} 19. Nd3 {[%clk 0:02:17]}  Qe7 {[%clk 0:02:09]} 20. Rae1 {[%clk 0:02:11]}  Rfe8 {[%clk 0:02:07]} 21. Nc5 {[%clk 0:01:51]}  b6 {[%clk 0:02:05]} 22. Nd3 {[%clk 0:01:50]}  Qe4 {[%clk 0:02:03]} 23. Qxe4 {[%clk 0:01:49]}  Rxe4 {[%clk 0:02:04]} 24. Nf2 {[%clk 0:01:31]}  Re7 {[%clk 0:02:00]} 25. Kg2 {[%clk 0:01:31]}  Rae8 {[%clk 0:01:47]} 26. Kf3 {[%clk 0:01:31]}  Bxd4 {[%clk 0:01:44]} 27. Nd1 {[%clk 0:01:24]}  Re4 {[%clk 0:01:35]} 28. Rf2 {[%clk 0:01:21]}  Bc5 {[%clk 0:01:33]} 29. Rd2 {[%clk 0:01:18]}  Bb4 {[%clk 0:01:29]} 30. Rde2 {[%clk 0:01:09]}  Bxe1 {[%clk 0:01:29]} 31. Rxe1 {[%clk 0:01:10]}  Rxc4 {[%clk 0:01:29]} 32. Re2 {[%clk 0:01:10]}  Rd8 {[%clk 0:01:26]} 33. Nf2 {[%clk 0:01:10]}  f5 {[%clk 0:01:20]} 34. gxf5 {[%clk 0:01:09]}  gxf5 {[%clk 0:01:21]} 35. Kg3 {[%clk 0:01:01]}  a5 {[%clk 0:01:19]} 36. h4 {[%clk 0:01:01]}  b5 {[%clk 0:01:17]} 37. Nh3 {[%clk 0:01:01]}  Rg4+ {[%clk 0:01:18]} 38. Kf3 {[%clk 0:01:01]}  Rxh4 {[%clk 0:01:17]} 39. Nf4 {[%clk 0:01:01]}  Re8 {[%clk 0:01:12]} 40. Rc2 {[%clk 0:00:58]}  g5 {[%clk 0:01:11]} 41. Ng2 {[%clk 0:00:56]}  Rc4 {[%clk 0:01:10]} 42. Rd2 {[%clk 0:00:52]}  Re7 {[%clk 0:01:10]} 43. Rd6 {[%clk 0:00:50]}  Kf7 {[%clk 0:01:09]} 44. Rh6 {[%clk 0:00:50]}  Kg7 {[%clk 0:01:07]} 45. Rd6 {[%clk 0:00:49]}  a4 {[%clk 0:01:07]} 46. Rd2 {[%clk 0:00:46]}  b4 {[%clk 0:01:05]} 47. Ne1 {[%clk 0:00:45]}  b3 {[%clk 0:01:00]} 48. axb3 {[%clk 0:00:44]}  axb3 {[%clk 0:01:01]} 49. Rb2 {[%clk 0:00:44]}  Rc3 {[%clk 0:01:01]} 50. Ng2 {[%clk 0:00:42]}  c5 {[%clk 0:00:58]} 51. Ke2 {[%clk 0:00:42]}  Rc2+ {[%clk 0:00:55]} 52. Rxc2 {[%clk 0:00:41]}  bxc2 {[%clk 0:00:56]} 53. Kd2 {[%clk 0:00:41]}  f4 {[%clk 0:00:53]} 54. exf4 {[%clk 0:00:40]}  Re2+ {[%clk 0:00:51]} 55. Kxe2 {[%clk 0:00:38]}  c1=Q {[%clk 0:00:51]} 56. fxg5 {[%clk 0:00:38]}  Qxg5 {[%clk 0:00:50]} 57. Ne3 {[%clk 0:00:37]} 0-1


[Site "https://www.chess.com"]

[Event "Titled Tuesday Blitz July 27 2021"]
[White "Estrada Nieto, Julian"]
[Black "Jodorcovsky Werjivker, Paulo"]
[WhiteFideId "5101018"]
[BlackFideId "3700305"]
[WhiteElo "2270"]
[BlackElo "2142"]
[Result "1-0"]
[Round "10"]
[TimeControl "180+1"]
[Date "2021.07.27"]
[WhiteClock "0:00:03"]
[BlackClock "0:00:38"]

1. e4 {[%clk 0:03:00]}  e5 {[%clk 0:02:57]} 2. Nf3 {[%clk 0:03:00]}  Nc6 {[%clk 0:02:57]} 3. Bb5 {[%clk 0:03:00]}  a6 {[%clk 0:02:57]} 4. Ba4 {[%clk 0:03:00]}  Nf6 {[%clk 0:02:57]} 5. O-O {[%clk 0:03:00]}  Be7 {[%clk 0:02:57]} 6. Bxc6 {[%clk 0:02:59]}  dxc6 {[%clk 0:02:57]} 7. d3 {[%clk 0:03:00]}  Bg4 {[%clk 0:02:55]} 8. Nbd2 {[%clk 0:02:58]}  Nd7 {[%clk 0:02:51]} 9. h3 {[%clk 0:02:56]}  Bh5 {[%clk 0:02:47]} 10. b3 {[%clk 0:02:55]}  Bd6 {[%clk 0:02:44]} 11. Bb2 {[%clk 0:02:53]}  Qf6 {[%clk 0:02:42]} 12. Nc4 {[%clk 0:02:30]}  O-O-O {[%clk 0:02:37]} 13. Re1 {[%clk 0:02:19]}  h6 {[%clk 0:02:35]} 14. d4 {[%clk 0:02:08]}  Bxf3 {[%clk 0:02:30]} 15. Qxf3 {[%clk 0:02:03]}  Qxf3 {[%clk 0:02:29]} 16. gxf3 {[%clk 0:02:03]}  exd4 {[%clk 0:02:29]} 17. Nxd6+ {[%clk 0:01:57]}  cxd6 {[%clk 0:02:29]} 18. Bxd4 {[%clk 0:01:58]}  Ne5 {[%clk 0:02:28]} 19. Kg2 {[%clk 0:01:55]}  g5 {[%clk 0:02:19]} 20. Rad1 {[%clk 0:01:52]}  Rhf8 {[%clk 0:02:18]} 21. Bxe5 {[%clk 0:01:45]}  dxe5 {[%clk 0:02:19]} 22. Kg3 {[%clk 0:01:43]}  h5 {[%clk 0:02:15]} 23. h4 {[%clk 0:01:40]}  f6 {[%clk 0:02:13]} 24. Rh1 {[%clk 0:01:36]}  Rxd1 {[%clk 0:02:11]} 25. Rxd1 {[%clk 0:01:35]}  Rd8 {[%clk 0:02:11]} 26. Rh1 {[%clk 0:01:27]}  Rh8 {[%clk 0:01:55]} 27. Rd1 {[%clk 0:01:18]}  Rg8 {[%clk 0:01:51]} 28. Rd6 {[%clk 0:01:06]}  Rf8 {[%clk 0:01:51]} 29. hxg5 {[%clk 0:01:04]}  fxg5 {[%clk 0:01:52]} 30. Re6 {[%clk 0:01:02]}  h4+ {[%clk 0:01:48]} 31. Kg2 {[%clk 0:01:01]}  Rf4 {[%clk 0:01:44]} 32. Rxe5 {[%clk 0:01:00]}  g4 {[%clk 0:01:42]} 33. fxg4 {[%clk 0:00:59]}  Rxg4+ {[%clk 0:01:43]} 34. Kf3 {[%clk 0:00:46]}  Rg1 {[%clk 0:01:43]} 35. Ke2 {[%clk 0:00:35]}  Rc1 {[%clk 0:01:35]} 36. Kd3 {[%clk 0:00:30]}  Rf1 {[%clk 0:01:31]} 37. Rh5 {[%clk 0:00:28]}  Rxf2 {[%clk 0:01:30]} 38. Rxh4 {[%clk 0:00:28]}  Rf3+ {[%clk 0:01:28]} 39. Kd4 {[%clk 0:00:27]}  Kc7 {[%clk 0:01:28]} 40. Rh7+ {[%clk 0:00:26]}  Kc8 {[%clk 0:01:25]} 41. a4 {[%clk 0:00:25]}  Rf2 {[%clk 0:01:25]} 42. Kc3 {[%clk 0:00:22]}  Rf3+ {[%clk 0:01:22]} 43. Kc4 {[%clk 0:00:23]}  Re3 {[%clk 0:01:18]} 44. Kd4 {[%clk 0:00:20]}  Re2 {[%clk 0:01:17]} 45. Kd3 {[%clk 0:00:20]}  Re1 {[%clk 0:01:17]} 46. a5 {[%clk 0:00:20]}  Rd1+ {[%clk 0:01:17]} 47. Kc4 {[%clk 0:00:19]}  Re1 {[%clk 0:01:16]} 48. Re7 {[%clk 0:00:18]}  Kd8 {[%clk 0:01:14]} 49. Rxb7 {[%clk 0:00:17]}  Rxe4+ {[%clk 0:01:13]} 50. Kc3 {[%clk 0:00:15]}  Re5 {[%clk 0:01:10]} 51. b4 {[%clk 0:00:14]}  Re3+ {[%clk 0:01:05]} 52. Kc4 {[%clk 0:00:13]}  Re2 {[%clk 0:01:03]} 53. c3 {[%clk 0:00:13]}  Re5 {[%clk 0:01:02]} 54. Rb6 {[%clk 0:00:12]}  Kc7 {[%clk 0:01:02]} 55. Rxa6 {[%clk 0:00:12]}  Kb7 {[%clk 0:01:02]} 56. Rb6+ {[%clk 0:00:12]}  Kc7 {[%clk 0:01:02]} 57. b5 {[%clk 0:00:12]}  cxb5+ {[%clk 0:00:55]} 58. Rxb5 {[%clk 0:00:12]}  Re4+ {[%clk 0:00:56]} 59. Kb3 {[%clk 0:00:10]}  Kc6 {[%clk 0:00:55]} 60. Rg5 {[%clk 0:00:10]}  Kb7 {[%clk 0:00:54]} 61. c4 {[%clk 0:00:09]}  Ka6 {[%clk 0:00:54]} 62. Kb4 {[%clk 0:00:10]}  Re1 {[%clk 0:00:54]} 63. Rg6+ {[%clk 0:00:10]}  Ka7 {[%clk 0:00:55]} 64. Kb5 {[%clk 0:00:09]}  Rb1+ {[%clk 0:00:55]} 65. Kc5 {[%clk 0:00:09]}  Rh1 {[%clk 0:00:55]} 66. a6 {[%clk 0:00:08]}  Rh5+ {[%clk 0:00:53]} 67. Kb4 {[%clk 0:00:07]}  Rh4 {[%clk 0:00:54]} 68. Kb5 {[%clk 0:00:07]}  Rh1 {[%clk 0:00:54]} 69. Rg7+ {[%clk 0:00:07]}  Ka8 {[%clk 0:00:53]} 70. c5 {[%clk 0:00:08]}  Rb1+ {[%clk 0:00:52]} 71. Kc6 {[%clk 0:00:08]}  Rb8 {[%clk 0:00:52]} 72. Rc7 {[%clk 0:00:04]}  Rh8 {[%clk 0:00:52]} 73. Kb6 {[%clk 0:00:04]}  Kb8 {[%clk 0:00:49]} 74. a7+ {[%clk 0:00:04]}  Ka8 {[%clk 0:00:50]} 75. c6 {[%clk 0:00:04]}  Rg8 {[%clk 0:00:45]} 76. Rd7 {[%clk 0:00:04]}  Rh8 {[%clk 0:00:43]} 77. c7 {[%clk 0:00:04]}  Rh6+ {[%clk 0:00:44]} 78. Kb5 {[%clk 0:00:04]}  Rh5+ {[%clk 0:00:42]} 79. Kb4 {[%clk 0:00:03]}  Rh4+ {[%clk 0:00:42]} 80. Kc5 {[%clk 0:00:04]}  Rh5+ {[%clk 0:00:41]} 81. Kc6 {[%clk 0:00:04]}  Rh6+ {[%clk 0:00:42]} 82. Rd6 {[%clk 0:00:04]}  Kxa7 {[%clk 0:00:37]} 83. Rxh6 {[%clk 0:00:03]}  Ka6 {[%clk 0:00:37]} 84. Rh8 {[%clk 0:00:03]}  Ka5 {[%clk 0:00:37]} 85. c8=Q {[%clk 0:00:03]}  Kb4 {[%clk 0:00:38]} 86. Qb7+ {[%clk 0:00:03]}  Ka5 {[%clk 0:00:38]} 87. Rg8 {[%clk 0:00:04]}  Ka4 {[%clk 0:00:38]} 88. Rg4+ {[%clk 0:00:03]}  Ka5 {[%clk 0:00:38]} 89. Qb5# {[%clk 0:00:03]} 1-0


[Site "https://www.chess.com"]

[Event "Titled Tuesday Blitz July 27 2021"]
[White "Florescu, Codrut-Constantin"]
[Black "Balabayeva, Xeniya"]
[WhiteFideId "1202200"]
[BlackFideId "13719688"]
[WhiteElo "2243"]
[BlackElo "1988"]
[Result "1-0"]
[Round "10"]
[TimeControl "180+1"]
[Date "2021.07.27"]
[WhiteClock "0:00:16"]
[BlackClock "0:00:01"]

1. d4 {[%clk 0:03:00]}  d5 {[%clk 0:03:00]} 2. c4 {[%clk 0:03:00]}  e6 {[%clk 0:03:00]} 3. Nf3 {[%clk 0:02:59]}  a6 {[%clk 0:02:59]} 4. g3 {[%clk 0:02:53]}  dxc4 {[%clk 0:02:55]} 5. Bg2 {[%clk 0:02:52]}  Nc6 {[%clk 0:02:55]} 6. O-O {[%clk 0:02:51]}  Nf6 {[%clk 0:02:54]} 7. Bf4 {[%clk 0:02:41]}  Be7 {[%clk 0:02:53]} 8. a4 {[%clk 0:02:37]}  O-O {[%clk 0:02:51]} 9. Qc2 {[%clk 0:02:29]}  Na5 {[%clk 0:02:47]} 10. Nbd2 {[%clk 0:02:27]}  Nd5 {[%clk 0:02:36]} 11. Nxc4 {[%clk 0:02:26]}  Nxc4 {[%clk 0:02:30]} 12. Qxc4 {[%clk 0:02:25]}  Nxf4 {[%clk 0:02:30]} 13. gxf4 {[%clk 0:02:26]}  Bd7 {[%clk 0:02:22]} 14. Rfc1 {[%clk 0:02:22]}  Bc6 {[%clk 0:02:16]} 15. Ne5 {[%clk 0:02:20]}  Bxg2 {[%clk 0:02:15]} 16. Kxg2 {[%clk 0:02:21]}  Rc8 {[%clk 0:02:09]} 17. b4 {[%clk 0:02:20]}  c6 {[%clk 0:02:04]} 18. e3 {[%clk 0:02:17]}  Bd6 {[%clk 0:02:02]} 19. Nf3 {[%clk 0:02:06]}  h6 {[%clk 0:01:55]} 20. Rab1 {[%clk 0:01:58]}  Qd7 {[%clk 0:01:52]} 21. Rd1 {[%clk 0:01:39]}  f6 {[%clk 0:01:48]} 22. h3 {[%clk 0:01:36]}  Kh8 {[%clk 0:01:46]} 23. Nh4 {[%clk 0:01:34]}  Qe8 {[%clk 0:01:21]} 24. Qd3 {[%clk 0:01:17]}  Rf7 {[%clk 0:01:18]} 25. Qg6 {[%clk 0:01:14]}  Rfc7 {[%clk 0:01:15]} 26. Kf3 {[%clk 0:01:01]}  Qxg6 {[%clk 0:01:10]} 27. Nxg6+ {[%clk 0:01:00]}  Kh7 {[%clk 0:01:09]} 28. Rg1 {[%clk 0:00:56]}  b5 {[%clk 0:01:08]} 29. a5 {[%clk 0:00:52]}  Re8 {[%clk 0:01:05]} 30. h4 {[%clk 0:00:51]}  h5 {[%clk 0:01:03]} 31. e4 {[%clk 0:00:47]}  Bf8 {[%clk 0:00:59]} 32. Nxf8+ {[%clk 0:00:40]}  Rxf8 {[%clk 0:00:56]} 33. Rbc1 {[%clk 0:00:39]}  Rd8 {[%clk 0:00:53]} 34. Ke3 {[%clk 0:00:38]}  Kg8 {[%clk 0:00:47]} 35. Rc5 {[%clk 0:00:37]}  Kf7 {[%clk 0:00:30]} 36. Rgc1 {[%clk 0:00:33]}  Rcd7 {[%clk 0:00:29]} 37. Rd1 {[%clk 0:00:29]}  Rd6 {[%clk 0:00:23]} 38. Rxh5 {[%clk 0:00:27]}  Kg6 {[%clk 0:00:14]} 39. Rc5 {[%clk 0:00:27]}  Rh8 {[%clk 0:00:14]} 40. Rg1+ {[%clk 0:00:24]}  Kf7 {[%clk 0:00:13]} 41. h5 {[%clk 0:00:24]}  Rhd8 {[%clk 0:00:13]} 42. Rd1 {[%clk 0:00:24]}  f5 {[%clk 0:00:10]} 43. e5 {[%clk 0:00:24]}  Rd5 {[%clk 0:00:07]} 44. Rxc6 {[%clk 0:00:25]}  Rh8 {[%clk 0:00:07]} 45. Rc7+ {[%clk 0:00:23]}  Ke8 {[%clk 0:00:07]} 46. Rc8+ {[%clk 0:00:23]}  Rd8 {[%clk 0:00:07]} 47. Rxd8+ {[%clk 0:00:22]}  Kxd8 {[%clk 0:00:08]} 48. d5 {[%clk 0:00:23]}  Rxh5 {[%clk 0:00:05]} 49. dxe6+ {[%clk 0:00:22]}  Ke7 {[%clk 0:00:05]} 50. Rd6 {[%clk 0:00:22]}  Rh3+ {[%clk 0:00:05]} 51. f3 {[%clk 0:00:22]}  Rh1 {[%clk 0:00:05]} 52. Rxa6 {[%clk 0:00:22]}  Rb1 {[%clk 0:00:05]} 53. Ra7+ {[%clk 0:00:22]}  Kxe6 {[%clk 0:00:05]} 54. Rxg7 {[%clk 0:00:21]}  Rb3+ {[%clk 0:00:05]} 55. Kf2 {[%clk 0:00:21]}  Rxb4 {[%clk 0:00:05]} 56. Kg3 {[%clk 0:00:20]}  Ra4 {[%clk 0:00:05]} 57. Rg6+ {[%clk 0:00:19]}  Ke7 {[%clk 0:00:04]} 58. a6 {[%clk 0:00:19]}  b4 {[%clk 0:00:04]} 59. Rb6 {[%clk 0:00:19]}  b3 {[%clk 0:00:03]} 60. Rxb3 {[%clk 0:00:19]}  Rxa6 {[%clk 0:00:04]} 61. Rb7+ {[%clk 0:00:19]}  Ke8 {[%clk 0:00:02]} 62. Rg7 {[%clk 0:00:18]}  Kf8 {[%clk 0:00:01]} 63. Rg5 {[%clk 0:00:18]}  Ke7 {[%clk 0:00:01]} 64. Rxf5 {[%clk 0:00:18]}  Rh6 {[%clk 0:00:01]} 65. Rg5 {[%clk 0:00:18]}  Ke6 {[%clk 0:00:01]} 66. Kg4 {[%clk 0:00:16]}  Rh1 {[%clk 0:00:01]} 67. Rg6+ {[%clk 0:00:16]}  Ke7 {[%clk 0:00:01]} 68. Kf5 {[%clk 0:00:17]}  Rh5+ {[%clk 0:00:01]} 69. Rg5 {[%clk 0:00:17]}  Rh7 {[%clk 0:00:01]} 70. Ke4 {[%clk 0:00:16]} 1-0


[Site "https://www.chess.com"]

[Event "Titled Tuesday Blitz July 27 2021"]
[White "Gabrielian, Artur"]
[Black "Indjic, Aleksandar"]
[WhiteFideId "4131002"]
[BlackFideId "911925"]
[WhiteElo "2523"]
[BlackElo "2643"]
[Result "0-1"]
[Round "10"]
[TimeControl "180+1"]
[Date "2021.07.27"]
[WhiteClock "0:00:18"]
[BlackClock "0:00:15"]

1. e4 {[%clk 0:03:00]}  e5 {[%clk 0:02:59]} 2. Nc3 {[%clk 0:03:00]}  Nf6 {[%clk 0:02:57]} 3. g3 {[%clk 0:03:00]}  Bc5 {[%clk 0:02:53]} 4. Bg2 {[%clk 0:03:00]}  d5 {[%clk 0:02:53]} 5. exd5 {[%clk 0:02:56]}  c6 {[%clk 0:02:50]} 6. Nge2 {[%clk 0:02:52]}  O-O {[%clk 0:02:48]} 7. O-O {[%clk 0:02:51]}  cxd5 {[%clk 0:02:46]} 8. d4 {[%clk 0:02:51]}  exd4 {[%clk 0:02:44]} 9. Nxd4 {[%clk 0:02:51]}  Bxd4 {[%clk 0:02:39]} 10. Qxd4 {[%clk 0:02:50]}  Nc6 {[%clk 0:02:40]} 11. Qh4 {[%clk 0:02:49]}  h6 {[%clk 0:02:35]} 12. a3 {[%clk 0:02:13]}  Bf5 {[%clk 0:02:31]} 13. Re1 {[%clk 0:01:51]}  d4 {[%clk 0:02:26]} 14. Ne4 {[%clk 0:01:20]}  Nxe4 {[%clk 0:02:19]} 15. Qxd8 {[%clk 0:01:18]}  Raxd8 {[%clk 0:02:16]} 16. Bxe4 {[%clk 0:01:18]}  Rfe8 {[%clk 0:02:16]} 17. f3 {[%clk 0:01:18]}  Bxe4 {[%clk 0:02:16]} 18. fxe4 {[%clk 0:01:18]}  Ne5 {[%clk 0:02:15]} 19. Kg2 {[%clk 0:01:16]}  d3 {[%clk 0:02:11]} 20. cxd3 {[%clk 0:01:14]}  Nxd3 {[%clk 0:02:12]} 21. Re2 {[%clk 0:01:13]}  f5 {[%clk 0:02:11]} 22. Bd2 {[%clk 0:00:54]}  Rxe4 {[%clk 0:01:56]} 23. Rxe4 {[%clk 0:00:54]}  fxe4 {[%clk 0:01:57]} 24. Be3 {[%clk 0:00:50]}  b6 {[%clk 0:01:48]} 25. b4 {[%clk 0:00:44]}  Rc8 {[%clk 0:01:44]} 26. Ra2 {[%clk 0:00:42]}  Kf7 {[%clk 0:01:43]} 27. g4 {[%clk 0:00:32]}  Rc2+ {[%clk 0:01:34]} 28. Rxc2 {[%clk 0:00:31]}  Ne1+ {[%clk 0:01:35]} 29. Kg3 {[%clk 0:00:24]}  Nxc2 {[%clk 0:01:35]} 30. Kf4 {[%clk 0:00:23]}  Nxa3 {[%clk 0:01:25]} 31. Kxe4 {[%clk 0:00:23]}  Ke6 {[%clk 0:01:17]} 32. h4 {[%clk 0:00:22]}  Nc4 {[%clk 0:01:16]} 33. Bd4 {[%clk 0:00:20]}  Nd6+ {[%clk 0:00:48]} 34. Kf4 {[%clk 0:00:20]}  g6 {[%clk 0:00:47]} 35. h5 {[%clk 0:00:19]}  g5+ {[%clk 0:00:29]} 36. Ke3 {[%clk 0:00:20]}  a5 {[%clk 0:00:19]} 37. bxa5 {[%clk 0:00:19]}  bxa5 {[%clk 0:00:20]} 38. Bg7 {[%clk 0:00:19]}  Nf7 {[%clk 0:00:13]} 39. Kd4 {[%clk 0:00:19]}  a4 {[%clk 0:00:14]} 40. Kc3 {[%clk 0:00:19]}  a3 {[%clk 0:00:14]} 41. Kb3 {[%clk 0:00:19]}  Kd5 {[%clk 0:00:15]} 42. Kxa3 {[%clk 0:00:19]}  Ke4 {[%clk 0:00:15]} 43. Kb4 {[%clk 0:00:17]}  Kf3 {[%clk 0:00:16]} 44. Kc4 {[%clk 0:00:18]}  Kxg4 {[%clk 0:00:16]} 45. Kd5 {[%clk 0:00:19]}  Kxh5 {[%clk 0:00:16]} 46. Ke4 {[%clk 0:00:18]}  Kg4 {[%clk 0:00:15]} 0-1


[Site "https://www.chess.com"]

[Event "Titled Tuesday Blitz July 27 2021"]
[White "Golubev, Mikhail"]
[Black "Murzin, Volodar"]
[WhiteFideId "14100983"]
[BlackFideId "44155573"]
[WhiteElo "2374"]
[BlackElo "2541"]
[Result "0-1"]
[Round "10"]
[TimeControl "180+1"]
[Date "2021.07.27"]
[WhiteClock "0:00:02"]
[BlackClock "0:00:24"]

1. e4 {[%clk 0:03:00]}  c6 {[%clk 0:02:59]} 2. d4 {[%clk 0:02:59]}  d5 {[%clk 0:03:00]} 3. e5 {[%clk 0:02:59]}  Bf5 {[%clk 0:02:59]} 4. h4 {[%clk 0:02:59]}  h5 {[%clk 0:02:59]} 5. c4 {[%clk 0:02:57]}  e6 {[%clk 0:02:58]} 6. Nc3 {[%clk 0:02:51]}  Ne7 {[%clk 0:02:57]} 7. Nge2 {[%clk 0:02:50]}  dxc4 {[%clk 0:02:56]} 8. Ng3 {[%clk 0:02:49]}  b5 {[%clk 0:02:55]} 9. Bg5 {[%clk 0:02:44]}  Qb6 {[%clk 0:02:49]} 10. a4 {[%clk 0:02:16]}  Bg6 {[%clk 0:02:43]} 11. axb5 {[%clk 0:02:01]}  cxb5 {[%clk 0:02:40]} 12. d5 {[%clk 0:01:47]}  Nxd5 {[%clk 0:02:32]} 13. Nxd5 {[%clk 0:01:46]}  exd5 {[%clk 0:02:33]} 14. Qxd5 {[%clk 0:01:21]}  Bb4+ {[%clk 0:02:20]} 15. Bd2 {[%clk 0:01:21]}  Bxd2+ {[%clk 0:02:14]} 16. Qxd2 {[%clk 0:01:22]}  Nc6 {[%clk 0:02:13]} 17. Be2 {[%clk 0:01:01]}  O-O {[%clk 0:01:56]} 18. Bxh5 {[%clk 0:00:51]}  Nxe5 {[%clk 0:01:50]} 19. O-O {[%clk 0:00:48]}  Rfd8 {[%clk 0:01:43]} 20. Qg5 {[%clk 0:00:47]}  Qf6 {[%clk 0:01:41]} 21. Qe3 {[%clk 0:00:43]}  a6 {[%clk 0:01:20]} 22. Bxg6 {[%clk 0:00:38]}  Nxg6 {[%clk 0:01:19]} 23. h5 {[%clk 0:00:35]}  Nf4 {[%clk 0:01:16]} 24. Ne4 {[%clk 0:00:33]}  Qh6 {[%clk 0:01:08]} 25. Rfd1 {[%clk 0:00:24]}  Nd3 {[%clk 0:00:59]} 26. Qe2 {[%clk 0:00:19]}  Re8 {[%clk 0:00:57]} 27. Qf3 {[%clk 0:00:13]}  Rad8 {[%clk 0:00:52]} 28. b3 {[%clk 0:00:09]}  Rd4 {[%clk 0:00:41]} 29. bxc4 {[%clk 0:00:07]}  bxc4 {[%clk 0:00:37]} 30. Ng3 {[%clk 0:00:07]}  Rf4 {[%clk 0:00:32]} 31. Qb7 {[%clk 0:00:05]}  Rxf2 {[%clk 0:00:31]} 32. Rxd3 {[%clk 0:00:05]}  cxd3 {[%clk 0:00:31]} 33. Kxf2 {[%clk 0:00:05]}  Qf6+ {[%clk 0:00:31]} 34. Kg1 {[%clk 0:00:04]}  Qxa1+ {[%clk 0:00:30]} 35. Kh2 {[%clk 0:00:04]}  d2 {[%clk 0:00:29]} 36. Qd7 {[%clk 0:00:04]}  Qe1 {[%clk 0:00:27]} 37. h6 {[%clk 0:00:03]}  d1=Q {[%clk 0:00:26]} 38. h7+ {[%clk 0:00:02]}  Kh8 {[%clk 0:00:25]} 39. Qxe8+ {[%clk 0:00:02]}  Qxe8 {[%clk 0:00:24]} 0-1


[Site "https://www.chess.com"]